bitfinex-derivatives/quotes_SOLF0:USTF0_20250808
["timestamp","ask_amount","ask_price","bid_price","bid_amount"]
[1754635461889,3.08,174.67,174.66,8.9545]
[1754635464391,3.08,174.67,174.66,3.23]
[1754635464586,3.08,174.67,174.65,8.9546]
[1754635464790,3.08,174.68,174.65,11.03154285]
[1754635467286,8.8039,174.68,174.65,11.03154285]
[1754635467490,3.08,174.67,174.65,11.03154285]
[1754635469296,3.08,174.67,174.65,7.80154285]
[1754635469494,3.08,174.67,174.66,3.23]
[1754635470699,3.08,174.67,174.66,8.9545]
[1754635471895,3.08,174.67,174.66,11.03144285]
[1754635472694,3.08,174.67,174.66,8.9545]
[1754635476490,3.08,174.67,174.65,7.80164285]
[1754635476697,3.08,174.67,174.65,8.7847]
[1754635477294,3.08,174.67,174.66,5.7245]
[1754635477493,3.08,174.67,174.66,8.7845]
[1754635477896,3.08,174.67,174.66,5.7245]
[1754635478698,3.08,174.67,174.66,8.7845]
[1754635480198,3.3,174.69,174.66,3.06]
[1754635480495,3.3,174.69,174.68,3.06]
[1754635481201,3.3,174.69,174.68,8.7836]
[1754635482103,3.3,174.71,174.69,5.7234]
[1754635482397,2.07694285,174.72,174.69,3.06]
[1754635482597,3.3,174.71,174.69,3.06]
[1754635482797,3.3,174.72,174.69,5.13694285]
[1754635483201,3.3,174.72,174.71,8.7828]
[1754635484704,3.3,174.74,174.73,8.7819]
[1754635485804,3.3,174.74,174.73,3.06]
[1754635486004,3.3,174.74,174.72,3.06]
[1754635486504,3.3,174.74,174.72,8.7825]
[1754635487698,3.3,174.73,174.72,3.06]
[1754635488205,3.3,174.73,174.72,8.7825]
[1754635488913,3.3,174.73,174.72,10.85944285]
[1754635489908,3.3,174.74,174.73,8.7822]
[1754635491110,3.3,174.74,174.73,3.06]
[1754635491411,9.0218,174.74,174.73,3.06]
[1754635491612,3.3,174.73,174.64,3.06]
[1754635491810,3.3,174.73,174.72,3.06]
[1754635492612,2.07694285,174.73,174.67,3.06]
[1754635492812,3.3,174.72,174.68,3.06]
[1754635493111,9.0227,174.72,174.68,3.06]
[1754635493314,3.3,174.71,174.68,3.06]
[1754635493611,3.3,174.71,174.69,5.7233]
[1754635493812,3.3,174.72,174.7,3.06]
[1754635494012,3.3,174.71,174.69,2.07694285]
[1754635494313,3.3,174.72,174.71,5.7226]
[1754635494611,3.3,174.72,174.71,8.7826]
[1754635495115,3.3,174.75,174.72,5.7224]
[1754635495312,6.54357105,174.76,174.69,3.06]
[1754635495516,3.3,174.75,174.69,3.06]
[1754635495716,5.7216,174.75,174.69,3.06]
[1754635496015,3.3,174.74,174.69,3.06]
[1754635497310,3.3,174.74,174.72,3.06]
[1754635497716,3.3,174.74,174.72,8.7823]
[1754635500516,3.3,174.74,174.72,3.06]
[1754635500812,3.3,174.73,174.68,3.24357105]
[1754635501013,3.24357105,174.72,174.67,3.06]
[1754635501220,3.3,174.7,174.67,3.06]
[1754635501718,3.3,174.7,174.68,5.7235]
[1754635502218,3.3,174.7,174.68,3.03]
[1754635502719,3.3,174.7,174.69,5.7235]
[1754635504718,3.3,174.7,174.69,8.7535]
[1754635505620,3.18,174.72,174.71,3.03]
[1754635507318,3.18,174.72,174.71,8.7527]
[1754635510615,3.18,174.72,174.67,3.24357105]
[1754635510817,3.18,174.72,174.67,3.03]
[1754635511418,6.42357105,174.72,174.67,3.03]
[1754635511620,12.14617105,174.72,174.68,5.7236]
[1754635511820,3.18,174.71,174.67,3.03]
[1754635512119,3.18,174.71,174.69,5.7232]
[1754635513220,3.18,174.71,174.7,5.7232]
[1754635517320,3.18,174.71,174.7,8.7532]
[1754635518924,3.18,174.73,174.67,3.03]
[1754635519922,3.18,174.73,174.71,5.7226]
[1754635520123,3.18,174.73,174.71,3.03]
[1754635520323,3.18,174.73,174.72,3.03]
[1754635520922,3.18,174.73,174.72,8.7522]
[1754635521222,3.18,174.73,174.72,5.7222]
[1754635521424,3.18,174.73,174.72,8.7522]
[1754635521625,3.18,174.75,174.73,5.7221]
[1754635522625,3.18,174.75,174.72,8.7525]
[1754635522824,3.18,174.75,174.7,3.03]
[1754635523729,5.7222,174.73,174.7,8.753]
[1754635523926,3.18,174.72,174.68,3.03]
[1754635524228,3.18,174.72,174.69,3.03]
[1754635524425,3.18,174.72,174.7,5.7231]
[1754635526027,3.18,174.72,174.7,8.7531]
[1754635528430,3.18,174.72,174.71,5.7228]
[1754635528630,3.18,174.72,174.71,8.7528]
[1754635529027,3.18,174.72,174.71,3.03]
[1754635533134,3.18,174.72,174.7,3.25]
[1754635535031,3.2,174.71,174.68,3.25]
[1754635535237,3.2,174.71,174.68,8.9736]
[1754635535438,3.2,174.71,174.69,3.25]
[1754635536142,3.24357105,174.7,174.67,3.25]
[1754635536342,3.2,174.69,174.67,3.25]
[1754635536538,3.2,174.67,174.65,8.9748]
[1754635536737,3.2,174.76,174.64,215.0979758]
[1754635536933,0.99633532,174.77,174.64,215.0979758]
[1754635536934,3.2,174.7,174.64,215.0979758]
[1754635537240,5.7232,174.7,174.68,3.25]
[1754635537441,3.2,174.7,174.69,3.25]
[1754635537637,3.2,174.7,174.68,3.25]
[1754635537941,3.2,174.7,174.69,3.25]
[1754635538443,3.2,174.7,174.68,8.9737]
[1754635539646,8.9232,174.7,174.68,3.25]
[1754635539845,3.2,174.69,174.68,3.25]
[1754635540144,3.2,174.69,174.67,8.9741]
[1754635540344,8.9235,174.69,174.66,5.7243]
[1754635540545,3.24357105,174.69,174.64,215.0979758]
[1754635540748,3.2,174.66,174.64,218.3479758]
[1754635541045,5.7245,174.66,174.64,218.3479758]
[1754635541247,3.2,174.65,174.64,218.3479758]
[1754635541748,8.9248,174.65,174.62,5.7256]
[1754635542048,3.2,174.64,174.63,3.25]
[1754635542647,8.9251,174.64,174.58,107.36357105]
[1754635542944,3.2,174.62,174.57,3.25]
[1754635543140,3.24357105,174.61,174.57,3.25]
[1754635543346,3.2,174.59,174.58,5.7269]
[1754635543542,3.2,174.59,174.58,8.9769]
[1754635543948,3.2,174.6,174.59,5.7267]
[1754635544551,3.2,174.6,174.59,8.9767]
[1754635546244,3.2,174.6,174.59,3.25]
[1754635546554,3.2,174.6,174.59,8.9768]
[1754635546745,3.2,174.6,174.59,3.25]
[1754635548352,3.2,174.6,174.55,3.25]
[1754635548853,3.2,174.6,174.57,5.7272]
[1754635549147,3.2,174.6,174.58,3.25]
[1754635549353,3.2,174.6,174.54,3.25]
[1754635549660,3.2,174.58,174.55,8.978]
[1754635549852,3.2,174.57,174.54,3.25]
[1754635550352,8.9275,174.57,174.54,3.25]
[1754635550552,3.2,174.56,174.54,3.25]
[1754635550755,3.2,174.55,174.54,8.9782]
[1754635554754,3.2,174.55,174.54,3.25]
[1754635555851,3.2,174.57,174.54,3.25]
[1754635556054,3.2,174.59,174.54,6.49357105]
[1754635556255,3.2,174.59,174.54,107.40357105]
[1754635556451,3.2,174.59,174.58,8.9771]
[1754635556759,8.9263,174.61,174.58,8.9771]
[1754635557054,3.2,174.6,174.59,3.25]
[1754635557456,3.2,174.6,174.59,8.9767]
[1754635557754,3.2,174.6,174.59,3.25]
[1754635558154,3.2,174.6,174.57,3.25]
[1754635558356,3.2,174.6,174.58,8.9769]
[1754635558655,3.2,174.59,174.58,8.9769]
[1754635559155,3.2,174.61,174.59,5.7267]
[1754635559356,3.2,174.6,174.59,8.9767]
[1754635560260,3.2,174.6,174.59,3.25]
[1754635560458,3.2,174.6,174.58,8.977]
[1754635560758,3.2,174.6,174.59,3.25]
[1754635561360,3.2,174.6,174.58,5.727]
[1754635561657,3.2,174.6,174.58,8.977]
[1754635561958,3.2,174.6,174.56,3.24357105]
[1754635561959,3.19,174.6,174.59,8.9668]
[1754635562559,3.19,174.6,174.57,3.24]
[1754635562758,3.19,174.58,174.52,221.12530538]
[1754635562954,3.19,174.56,174.52,3.24]
[1754635563157,3.19,174.55,174.53,5.7285]
[1754635563459,3.19,174.55,174.53,8.9685]
[1754635564150,3.19,174.56,174.54,8.9684]
[1754635564355,3.19,174.55,174.54,8.9684]
[1754635565263,3.19,174.64,174.52,3.24357105]
[1754635565465,3.19,174.6,174.53,3.24]
[1754635565859,3.19,174.58,174.56,8.9674]
[1754635566055,3.19,174.57,174.56,8.9674]
[1754635567064,3.19,174.57,174.52,3.24]
[1754635568265,3.19,174.56,174.54,8.9682]
[1754635568472,3.19,174.55,174.54,8.9682]
[1754635569573,3.19,174.57,174.54,8.9682]
[1754635569774,3.19,174.56,174.55,3.24]
[1754635570274,3.19,174.56,174.55,8.968]
[1754635575780,3.19,174.56,174.54,5.7283]
[1754635576675,3.19,174.56,174.53,3.24]
[1754635576881,3.19,174.56,174.49,322.04584689]
[1754635577082,3.19,174.56,174.5,3.24]
[1754635577483,8.9177,174.56,174.52,5.7288]
[1754635577682,3.19,174.55,174.52,8.9688]
[1754635578178,8.9181,174.55,174.52,3.24]
[1754635578482,3.19,174.53,174.52,3.24]
[1754635578781,3.19,174.55,174.52,8.969]
[1754635579977,3.19,174.54,174.51,8.9691]
[1754635580583,3.19,174.54,174.51,5.7291]
[1754635580885,3.19,174.54,174.52,8.969]
[1754635581081,3.19,174.53,174.52,8.969]
[1754635582181,3.19,174.54,174.48,3.24]
[1754635582583,3.19,174.52,174.49,8.9698]
[1754635584183,3.19,174.51,174.48,5.7302]
[1754635584383,3.19,174.51,174.48,8.9702]
[1754635586280,8.9194,174.51,174.48,8.9702]
[1754635586487,3.19,174.5,174.48,3.24]
[1754635587285,3.19,174.5,174.48,8.9703]
[1754635587885,3.19,174.5,174.48,3.24]
[1754635590391,3.19,174.5,174.47,8.9706]
[1754635591482,3.19,174.5,174.48,5.7301]
[1754635591787,3.19,174.5,174.48,3.24]
[1754635592287,3.19,174.5,174.48,8.9702]
[1754635592585,3.19,174.5,174.49,3.18]
[1754635592887,3.19,174.5,174.49,8.91]
[1754635597996,5.7292,174.52,174.49,8.91]
[1754635598202,3.24357105,174.53,174.5,8.9097]
[1754635598398,3.24357105,174.6,174.5,3.18]
[1754635598604,3.24357105,174.54,174.5,3.18]
[1754635598803,3.24357105,174.54,174.51,3.18]
[1754635599504,5.7289,174.53,174.51,3.18]
[1754635600103,3.02,174.52,174.51,3.18]
[1754635600903,3.02,174.52,174.51,8.9093]
[1754635601102,8.749,174.52,174.46,107.42357105]
[1754635601303,3.02,174.51,174.49,3.18]
[1754635602007,8.7494,174.51,174.49,3.18]
[1754635602204,3.02,174.5,174.49,3.18]
[1754635602504,3.02,174.5,174.49,8.91]
[1754635602805,3.02,174.5,174.49,3.18]
[1754635604104,0.3777929,174.54,174.48,5.73]
[1754635604307,3.24357105,174.53,174.5,3.18]
[1754635605208,5.7295,174.51,174.5,3.18]
[1754635606107,2.74,174.51,174.5,3.18]
[1754635608005,0.25176188,174.53,174.5,3.18]
[1754635608209,5.729,174.52,174.51,3.18]
[1754635609508,0.25176188,174.53,174.47,3.18]
[1754635609810,3.24357105,174.49,174.47,3.18]
[1754635610103,11.4549,174.57,174.46,3.18]
[1754635610307,0.37753316,174.5,174.49,3.18]
[1754635610707,5.7296,174.51,174.49,3.18]
[1754635611103,7.56984479,174.57,174.49,3.18]
[1754635611304,3.24357105,174.52,174.49,3.18]
[1754635611812,5.7296,174.51,174.49,3.18]
[1754635612513,5.7296,174.51,174.5,3.18]
[1754635613714,8.97277105,174.52,174.5,3.18]
[1754635614015,8.97277105,174.52,174.51,3.18]
[1754635614317,7.20077579,174.52,174.51,3.18]
[1754635614616,3.24357105,174.52,174.51,3.18]
[1754635615314,8.97257105,174.52,174.51,3.18]
[1754635615506,3.24357105,174.52,174.49,3.18]
[1754635615712,3.24357105,174.52,174.5,3.18]
[1754635616317,3.24357105,174.51,174.5,3.18]
[1754635616814,8.97287105,174.51,174.5,3.18]
[1754635618014,3.24096388,174.51,174.5,3.18]
[1754635619715,8.97267105,174.52,174.5,3.18]
[1754635620217,104.2,174.57,174.5,8.9097]
[1754635620515,3.24357105,174.53,174.51,3.18]
[1754635620814,3.24357105,174.55,174.51,3.18]
[1754635621418,3.24357105,174.55,174.52,3.18]
[1754635621917,5.7286,174.54,174.52,3.18]
[1754635622320,93.49317497,174.57,174.52,3.18]
[1754635622521,3.24357105,174.55,174.52,3.18]
[1754635623016,5.7286,174.54,174.52,3.18]
[1754635623222,5.7286,174.54,174.52,3.2206846]
[1754635625030,5.7287,174.53,174.52,3.2206846]
[1754635625925,5.7285,174.54,174.52,3.2206846]
[1754635626228,92.43523922,174.57,174.52,3.2206846]
[1754635626423,3.24357105,174.54,174.52,3.2206846]
[1754635627730,5.7287,174.53,174.52,3.2206846]
[1754635628024,3.24101035,174.54,174.52,3.2206846]
[1754635628220,3.24357105,174.54,174.52,3.2206846]
[1754635628624,8.97217105,174.54,174.52,3.2206846]
[1754635630130,7.20088887,174.54,174.52,3.2206846]
[1754635630332,5.7287,174.53,174.52,3.2206846]
[1754635631232,3.24357105,174.54,174.52,3.2206846]
[1754635631830,5.7287,174.53,174.52,3.2206846]
[1754635634231,1.80797977,174.54,174.52,3.2206846]
[1754635634531,3.24357105,174.54,174.52,3.2206846]
[1754635635231,8.97217105,174.54,174.52,3.2206846]
[1754635635533,3.24357105,174.54,174.52,3.2206846]
[1754635636227,102.08452728,174.58,174.52,3.2206846]
[1754635636434,3.24357105,174.55,174.52,3.2206846]
[1754635636634,2.08102492,174.53,174.52,3.2206846]
[1754635636935,7.80972492,174.53,174.52,3.2206846]
[1754635638033,7.74146365,174.53,174.52,3.2206846]
[1754635638333,2.08102492,174.53,174.52,3.2206846]
[1754635638736,7.80972492,174.53,174.52,3.2206846]
[1754635640436,97.30841615,174.58,174.52,3.2206846]
[1754635640639,2.08102492,174.53,174.52,3.2206846]
[1754635641232,5.7287,174.54,174.52,3.2206846]
[1754635641434,2.08102492,174.53,174.52,3.2206846]
[1754635641841,5.7287,174.53,174.52,3.2206846]
[1754635642040,7.80972492,174.53,174.52,3.2206846]
[1754635642642,2.08102492,174.53,174.52,3.2206846]
[1754635643043,5.7285,174.54,174.52,3.2206846]
[1754635643243,2.08102492,174.53,174.52,3.2206846]
[1754635646346,82.7693869,174.58,174.52,3.2206846]
[1754635646553,2.08102492,174.53,174.52,3.2206846]
[1754635648055,4.15908856,174.54,174.52,3.2206846]
[1754635648355,2.08102492,174.53,174.52,3.2206846]
[1754635650553,7.80972492,174.53,174.52,3.2206846]
[1754635650754,7.80972492,174.53,174.52,3.3506846]
[1754635651253,5.7287,174.53,174.52,3.3506846]
[1754635651457,2.08102492,174.53,174.52,3.3506846]
[1754635653259,7.80972492,174.53,174.52,3.3506846]
[1754635654155,5.7287,174.53,174.52,3.3506846]
[1754635654360,4.87560316,174.53,174.52,3.3506846]
[1754635656460,2.08102492,174.53,174.52,3.3506846]
[1754635657263,7.80972492,174.53,174.52,3.3506846]
[1754635658061,2.08102492,174.53,174.52,3.3506846]
[1754635658262,66.6601698,174.58,174.52,3.3506846]
[1754635658462,2.08102492,174.53,174.52,3.3506846]
[1754635658764,7.80972492,174.53,174.52,3.3506846]
[1754635661365,2.08102492,174.53,174.52,3.3506846]
[1754635663968,7.80972492,174.53,174.52,3.3506846]
[1754635664265,101.22565709,174.56,174.52,3.3506846]
[1754635664568,2.08102492,174.53,174.52,3.3506846]
[1754635667572,7.80972492,174.53,174.52,3.3506846]
[1754635668073,2.08102492,174.53,174.52,3.3506846]
[1754635668871,7.80972492,174.53,174.52,3.3506846]
[1754635670271,2.08102492,174.53,174.52,3.3506846]
[1754635671672,7.80972492,174.53,174.52,3.3506846]
[1754635676282,2.08102492,174.53,174.52,3.3506846]
[1754635676676,2.08102492,174.53,174.52,0.0406846]
[1754635677278,2.08102492,174.53,174.52,3.3406846]
[1754635677772,7.80972492,174.53,174.52,3.3406846]
[1754635678177,6.30824232,174.53,174.52,3.3406846]
[1754635678376,104.14,174.54,174.52,3.3406846]
[1754635678578,2.08102492,174.53,174.52,3.3406846]
[1754635679074,7.80972492,174.53,174.52,3.3406846]
[1754635681383,2.08102492,174.53,174.52,3.3406846]
[1754635682886,7.80972492,174.53,174.52,3.3406846]
[1754635683787,2.08102492,174.53,174.52,3.3406846]
[1754635688994,7.80972492,174.53,174.52,3.3406846]
[1754635689391,2.08102492,174.53,174.52,3.3406846]
[1754635690394,7.80972492,174.53,174.52,3.3406846]
[1754635690993,2.08102492,174.53,174.44,2.08102492]
[1754635691297,98.20092336,174.55,174.51,3.33]
[1754635691497,5.729,174.52,174.51,3.33]
[1754635691694,88.16990203,174.55,174.5,3.33]
[1754635692198,5.7293,174.51,174.5,3.33]
[1754635692389,7.81032492,174.51,174.5,3.33]
[1754635693199,11.4534,174.6,174.5,3.33]
[1754635693393,2.08102492,174.52,174.5,3.33]
[1754635696406,2.08102492,174.53,174.5,3.33]
[1754635696709,2.08102492,174.55,174.51,3.33]
[1754635696901,2.08102492,174.57,174.52,2.08102492]
[1754635697102,2.08102492,174.57,174.53,3.33]
[1754635697304,2.08102492,174.57,174.54,5.41102492]
[1754635697506,104.12,174.59,174.57,3.33]
[1754635698103,2.08102492,174.61,174.57,3.33]
[1754635698606,2.08102492,174.59,174.58,3.33]
[1754635700411,2.08102492,174.6,174.58,3.33]
[1754635701409,382.07799441,174.63,174.58,3.33]
[1754635701612,2.08102492,174.59,174.58,3.33]
[1754635701814,382.07799441,174.63,174.58,3.33]
[1754635702010,2.08102492,174.6,174.58,3.33]
[1754635705211,7.80742492,174.6,174.58,3.33]
[1754635706412,374.13292892,174.63,174.58,3.33]
[1754635706612,373.34935658,174.63,174.58,3.33]
[1754635706815,2.08102492,174.59,174.58,3.33]
[1754635708313,7.80772492,174.59,174.58,3.33]
[1754635708915,2.08102492,174.59,174.58,3.33]
[1754635711816,2.08102492,174.6,174.58,3.33]
[1754635713717,2.08102492,174.59,174.58,3.33]
[1754635715218,5.7261,174.61,174.58,3.33]
[1754635715522,2.08102492,174.59,174.58,3.33]
[1754635716426,367.41538271,174.63,174.58,3.33]
[1754635716620,2.08102492,174.59,174.58,3.33]
[1754635717521,7.80772492,174.59,174.58,3.33]
[1754635717720,2.08102492,174.59,174.58,3.33]
[1754635718724,7.80772492,174.59,174.58,3.33]
[1754635721030,2.08102492,174.59,174.58,3.33]
[1754635721425,99.50925791,174.6,174.58,3.33]
[1754635721729,2.08102492,174.59,174.58,3.33]
[1754635722035,7.80772492,174.59,174.58,3.33]
[1754635723129,5.7267,174.59,174.58,3.33]
[1754635723330,7.80772492,174.59,174.58,3.33]
[1754635724630,2.08102492,174.59,174.58,3.33]
[1754635724832,2.08102492,174.59,174.54,5.7283]
[1754635725130,2.08102492,174.57,174.54,5.7283]
[1754635725330,2.08102492,174.57,174.55,3.09]
[1754635725527,2.08102492,174.57,174.55,8.8178]
[1754635725729,2.08102492,174.57,174.56,3.09]
[1754635728125,78.4651065,174.6,174.56,3.09]
[1754635728430,2.08102492,174.57,174.56,3.09]
[1754635729430,109.8065,174.6,174.56,3.09]
[1754635729631,2.08102492,174.57,174.56,3.09]
[1754635733230,101.07658948,174.6,174.56,3.09]
[1754635733433,2.08102492,174.57,174.56,3.09]
[1754635733831,2.08102492,174.58,174.56,3.09]
[1754635734024,2.08102492,174.57,174.56,3.09]
[1754635736330,98.14399322,174.6,174.56,3.09]
[1754635736331,2.08102492,174.58,174.56,3.09]
[1754635737225,78.60610483,174.6,174.56,3.09]
[1754635737633,2.08102492,174.61,174.56,3.09]
[1754635737831,2.08102492,174.61,174.58,3.09]
[1754635738829,2.08102492,174.61,174.58,8.817]
[1754635739128,2.08102492,174.61,174.59,3.09]
[1754635742538,2.08102492,174.6,174.59,3.09]
[1754635743038,2.08102492,174.6,174.53,2.08102492]
[1754635743343,2.08102492,174.58,174.54,8.838]
[1754635743539,2.08102492,174.58,174.55,3.11]
[1754635744139,2.08102492,174.58,174.55,8.8379]
[1754635744335,2.08102492,174.58,174.56,3.11]
[1754635746041,2.08102492,174.58,174.53,3.11]
[1754635746236,2.08102492,174.56,174.53,3.11]
[1754635747744,2.08102492,174.56,174.53,5.19102492]
[1754635748244,97.56832652,174.64,174.54,5.19102492]
[1754635748437,2.08102492,174.59,174.55,3.11]
[1754635748933,2.08102492,174.58,174.55,3.11]
[1754635750342,91.70365773,174.64,174.55,3.11]
[1754635750542,2.08102492,174.57,174.55,3.11]
[1754635751843,2.08102492,174.58,174.55,3.11]
[1754635752544,2.08102492,174.58,174.56,5.7276]
[1754635752842,2.08102492,174.58,174.57,3.11]
[1754635753847,2.08102492,174.59,174.57,3.11]
[1754635754447,5.7262,174.61,174.57,3.11]
[1754635754647,2.08102492,174.59,174.57,3.11]
[1754635755345,2.08102492,174.59,174.58,3.11]
[1754635757544,2.08102492,174.59,174.55,3.11]
[1754635757751,2.08102492,174.56,174.55,3.11]
[1754635766358,7.80892492,174.56,174.51,3.11]
[1754635766562,2.08102492,174.53,174.52,3.11]
[1754635767565,2.08102492,174.53,174.52,8.839]
[1754635767761,2.08102492,174.54,174.52,5.729]
[1754635767962,2.08102492,174.54,174.53,8.8387]
[1754635770168,5.7274,174.57,174.53,8.8387]
[1754635770367,2.08102492,174.54,174.53,5.7287]
[1754635770869,2.08102492,174.54,174.53,8.8387]
[1754635773972,2.08102492,174.55,174.53,5.7287]
[1754635774172,2.08102492,174.55,174.54,8.8183]
[1754635777669,2.08102492,174.56,174.54,3.09]
[1754635777872,2.08102492,174.58,174.55,3.09]
[1754635778272,2.08102492,174.59,174.58,5.727]
[1754635778574,2.08102492,174.59,174.58,8.817]
[1754635778764,2.08102492,174.59,174.58,3.09]
[1754635779874,2.08102492,174.59,174.58,8.817]
[1754635783380,2.08102492,174.59,174.58,3.09]
[1754635783582,2.08102492,174.61,174.58,3.09]
[1754635783880,2.08102492,174.61,174.58,5.17102492]
[1754635784074,2.08102492,174.61,174.6,5.7264]
[1754635784282,2.08102492,174.63,174.61,3.09]
[1754635784784,31.01716274,174.64,174.62,8.8157]
[1754635785082,33.09818766,174.64,174.63,3.09]
[1754635787786,0.99707753,174.64,174.63,3.09]
[1754635787982,2.08102492,174.67,174.63,3.09]
[1754635788185,2.08102492,174.66,174.63,3.09]
[1754635788482,2.08102492,174.66,174.64,3.09]
[1754635790687,4.24352262,174.68,174.64,3.09]
[1754635791584,390.7034,174.69,174.64,3.09]
[1754635791789,3.24670213,174.68,174.64,3.09]
[1754635796198,107.26670213,174.68,174.64,3.09]
[1754635796698,100.48985943,174.68,174.64,3.09]
[1754635797600,93.33018455,174.68,174.64,3.09]
[1754635798801,3.24670213,174.7,174.62,3.24670213]
[1754635799002,107.24670213,174.7,174.63,3.09]
[1754635799396,107.24670213,174.7,174.65,3.09]
[1754635799701,3.24670213,174.69,174.65,3.09]
[1754635800205,3.24670213,174.69,174.66,3.09]
[1754635800398,102.23530602,174.7,174.66,3.09]
[1754635800594,102.23530602,174.7,174.66,6.33670213]
[1754635800901,107.24670213,174.74,174.67,3.09]
[1754635801601,107.24670213,174.74,174.71,3.09]
[1754635801795,97.22576302,174.74,174.71,3.09]
[1754635801999,0.04275643,174.72,174.71,3.09]
[1754635803706,90.1107058,174.74,174.71,3.09]
[1754635804203,3.24670213,174.73,174.71,3.09]
[1754635804406,3.24670213,174.73,174.72,3.06]
[1754635807608,3.24670213,174.73,174.69,5.76028994]
[1754635808210,3.24670213,174.73,174.7,3.06]
[1754635808605,3.24670213,174.73,174.69,3.09698994]
[1754635808810,3.24670213,174.71,174.69,0.03698994]
[1754635809209,5.7231,174.7,174.69,0.03698994]
[1754635809709,3.24670213,174.7,174.69,3.09698994]
[1754635812014,3.24670213,174.7,174.69,0.03698994]
[1754635812814,8.96980213,174.7,174.69,0.03698994]
[1754635813113,3.24670213,174.68,174.64,3.06]
[1754635813313,3.24670213,174.65,174.64,3.06]
[1754635815511,103.98,174.68,174.64,3.06]
[1754635815718,3.24670213,174.66,174.64,3.06]
[1754635816418,3.24670213,174.66,174.65,3.06]
[1754635820425,3.03,174.65,174.54,3.24670213]
[1754635820620,3.24670213,174.61,174.54,3.24670213]
[1754635820921,3.24670213,174.61,174.59,5.7264]
[1754635821724,106.34239236,174.69,174.59,5.7264]
[1754635822023,3.24670213,174.61,174.6,3.06]
[1754635835023,3.24670213,174.65,174.6,3.06]
[1754635835218,0.99660638,174.72,174.64,3.24670213]
[1754635835425,17.83779993,174.76,174.69,3.1]
[1754635835626,3.24670213,174.74,174.69,3.1]
[1754635835827,17.83779993,174.76,174.69,3.1]
[1754635836125,3.24670213,174.75,174.69,3.1]
[1754635836621,3.24670213,174.75,174.7,5.7229]
[1754635836821,3.24670213,174.75,174.71,3.1]
[1754635839322,8.96850213,174.75,174.71,3.1]
[1754635839525,3.24670213,174.73,174.68,3.1]
[1754635839726,1.4824543,174.78,174.68,3.1]
[1754635839929,3.24670213,174.72,174.68,3.1]
[1754635840325,3.24670213,174.72,174.69,3.1]
[1754635841831,3.24670213,174.73,174.69,3.1]
[1754635842730,8.96880213,174.73,174.69,3.1]
[1754635843533,5.7225,174.72,174.69,3.1]
[1754635843728,5.7225,174.72,174.67,3.1]
[1754635843928,3.24670213,174.73,174.67,3.1]
[1754635845128,8.96880213,174.73,174.67,3.1]
[1754635845626,3.24670213,174.73,174.67,8.824]
[1754635845931,3.24670213,174.72,174.68,3.1]
[1754635849331,3.24670213,174.72,174.69,3.1]
[1754635851733,3.24670213,174.73,174.7,3.1]
[1754635855631,5.7215,174.75,174.7,3.1]
[1754635855936,3.24670213,174.73,174.7,3.1]
[1754635856231,3.24670213,174.73,174.7,5.723]
[1754635856432,3.24670213,174.73,174.71,3.1]
[1754635857133,3.24670213,174.74,174.71,3.1]
[1754635858132,3.24670213,174.74,174.72,3.1]
[1754635858638,3.24670213,174.74,174.69,5.7232]